[Event "Early-Titled-Tuesday-Blitz-September-05-2023"]
[Site "Chess.com"]
[Date "2023.09.05"]
[Round "8"]
[White "Cheer_Down"]
[Black "The_Princess_Moon"]
[Result "0-1"]
[WhiteElo "2434"]
[BlackElo "2294"]
[TimeControl "180+1"]
[EndTime "9:26:24 PDT"]
[Termination "The_Princess_Moon won by checkmate"]

1. e4 {[%clk 0:03:00.9]} 1... c5 {[%clk 0:03:00]} 2. Nf3 {[%clk 0:03:00.5]} 2...
a6 {[%clk 0:03:00.4]} 3. g3 {[%clk 0:02:59.7]} 3... d5 {[%clk 0:02:59.5]} 4.
exd5 {[%clk 0:02:57.8]} 4... Nf6 {[%clk 0:02:58.8]} 5. Bg2 {[%clk 0:02:49.9]}
5... Nxd5 {[%clk 0:02:57.9]} 6. O-O {[%clk 0:02:50]} 6... Nc6 {[%clk 0:02:56.9]}
7. d4 {[%clk 0:02:48.8]} 7... e6 {[%clk 0:02:51.3]} 8. c4 {[%clk 0:02:37.7]}
8... Nf6 {[%clk 0:02:48.6]} 9. d5 {[%clk 0:02:33.1]} 9... exd5 {[%clk
0:02:48.3]} 10. cxd5 {[%clk 0:02:33.4]} 10... Qxd5 {[%clk 0:02:47]} 11. Re1+
{[%clk 0:02:19.1]} 11... Be7 {[%clk 0:02:45.9]} 12. Bd2 {[%clk 0:02:02.3]} 12...
O-O {[%clk 0:02:36.5]} 13. Ne5 {[%clk 0:02:00.9]} 13... Qd8 {[%clk 0:02:25.4]}
14. Nxc6 {[%clk 0:02:00.6]} 14... bxc6 {[%clk 0:02:24.8]} 15. Na3 {[%clk
0:01:51.1]} 15... Rb8 {[%clk 0:02:19.9]} 16. Nc4 {[%clk 0:01:48.2]} 16... Be6
{[%clk 0:02:17.8]} 17. b3 {[%clk 0:01:48.6]} 17... Nd5 {[%clk 0:02:11]} 18. Ne5
{[%clk 0:01:26.4]} 18... Qc7 {[%clk 0:02:07.1]} 19. Rc1 {[%clk 0:01:25.5]} 19...
Bd6 {[%clk 0:01:43.9]} 20. Nc4 {[%clk 0:01:19.9]} 20... Rbd8 {[%clk 0:01:33.7]}
21. Ba5 {[%clk 0:01:19.1]} 21... Qc8 {[%clk 0:01:25.4]} 22. Bxd8 {[%clk
0:01:19.1]} 22... Rxd8 {[%clk 0:01:26.3]} 23. Nxd6 {[%clk 0:01:19.3]} 23... Rxd6
{[%clk 0:01:22.9]} 24. Rxc5 {[%clk 0:01:16.5]} 24... Qd8 {[%clk 0:01:21.5]} 25.
Qc1 {[%clk 0:01:14.4]} 25... Nb4 {[%clk 0:01:19.4]} 26. Rxc6 {[%clk 0:01:10.3]}
26... Nxc6 {[%clk 0:01:18.1]} 27. Bxc6 {[%clk 0:01:09.2]} 27... g6 {[%clk
0:01:10.3]} 28. Bf3 {[%clk 0:01:06.2]} 28... Rd3 {[%clk 0:01:07.7]} 29. Re3
{[%clk 0:01:03.8]} 29... Rd2 {[%clk 0:01:05.4]} 30. a4 {[%clk 0:00:56.7]} 30...
Qd4 {[%clk 0:01:01.1]} 31. Qc3 {[%clk 0:00:49]} 31... Qd8 {[%clk 0:00:48.7]} 32.
Kg2 {[%clk 0:00:47.1]} 32... Qd7 {[%clk 0:00:47.8]} 33. h4 {[%clk 0:00:32.6]}
33... h5 {[%clk 0:00:47]} 34. Be4 {[%clk 0:00:24.4]} 34... Bh3+ {[%clk
0:00:45.9]} 35. Kg1 {[%clk 0:00:23.7]} 35... Ra2 {[%clk 0:00:34.6]} 36. Rd3
{[%clk 0:00:20.7]} 36... Qe8 {[%clk 0:00:31.7]} 37. Rd2 {[%clk 0:00:19.1]} 37...
Rxd2 {[%clk 0:00:30.8]} 38. Qxd2 {[%clk 0:00:18.2]} 38... Qxe4 {[%clk
0:00:30.9]} 39. Qd8+ {[%clk 0:00:13.4]} 39... Kg7 {[%clk 0:00:30.6]} 40. Kh2
{[%clk 0:00:09.2]} 40... Qg2# {[%clk 0:00:30.2]} 0-1

[Event "Early-Titled-Tuesday-Blitz-September-05-2023"]
[Site "Chess.com"]
[Date "2023.09.05"]
[Round "8"]
[White "hansen"]
[Black "Yeremyan_ChessMate"]
[Result "0-1"]
[WhiteElo "2856"]
[BlackElo "2685"]
[TimeControl "180+1"]
[EndTime "9:26:25 PDT"]
[Termination "Yeremyan_ChessMate won on time"]

1. e4 {[%clk 0:02:58]} 1... Nf6 {[%clk 0:02:59.4]} 2. e5 {[%clk 0:02:58.1]} 2...
Nd5 {[%clk 0:03:00.1]} 3. c4 {[%clk 0:02:58.8]} 3... Nb6 {[%clk 0:03:00.7]} 4.
d4 {[%clk 0:02:59.5]} 4... d6 {[%clk 0:03:01]} 5. exd6 {[%clk 0:03:00.4]} 5...
cxd6 {[%clk 0:03:01.9]} 6. Nc3 {[%clk 0:03:01.1]} 6... g6 {[%clk 0:03:02.5]} 7.
Be3 {[%clk 0:03:01.6]} 7... Bg7 {[%clk 0:03:03.2]} 8. Rc1 {[%clk 0:03:02.5]}
8... O-O {[%clk 0:03:03.9]} 9. b3 {[%clk 0:03:02.6]} 9... Bf5 {[%clk 0:03:04.6]}
10. Be2 {[%clk 0:03:01.2]} 10... d5 {[%clk 0:03:04.9]} 11. Nf3 {[%clk
0:03:00.6]} 11... Nc6 {[%clk 0:03:04.7]} 12. c5 {[%clk 0:03:00.5]} 12... Nc8
{[%clk 0:03:05.2]} 13. O-O {[%clk 0:02:56.6]} 13... Bg4 {[%clk 0:03:05.3]} 14.
Ne1 {[%clk 0:02:45.9]} 14... Bxe2 {[%clk 0:03:04.7]} 15. Nxe2 {[%clk 0:02:46.8]}
15... e6 {[%clk 0:03:04.7]} 16. f4 {[%clk 0:02:46.5]} 16... N8e7 {[%clk
0:03:05.4]} 17. Nf3 {[%clk 0:02:46.5]} 17... Nf5 {[%clk 0:03:05.8]} 18. Bf2
{[%clk 0:02:47.1]} 18... b6 {[%clk 0:03:03.6]} 19. Qd2 {[%clk 0:02:43.3]} 19...
b5 {[%clk 0:03:01.2]} 20. g4 {[%clk 0:02:41.1]} 20... Nfe7 {[%clk 0:03:00.8]}
21. h3 {[%clk 0:02:39]} 21... a5 {[%clk 0:03:00.9]} 22. a3 {[%clk 0:02:36.3]}
22... b4 {[%clk 0:02:56]} 23. a4 {[%clk 0:02:36.5]} 23... Qc7 {[%clk 0:02:56.1]}
24. Kg2 {[%clk 0:02:36.6]} 24... Rae8 {[%clk 0:02:55.5]} 25. Rce1 {[%clk
0:02:34.9]} 25... f6 {[%clk 0:02:56.1]} 26. Bg3 {[%clk 0:02:34.6]} 26... Qd7
{[%clk 0:02:54.7]} 27. Qd3 {[%clk 0:02:34.4]} 27... Kh8 {[%clk 0:02:51.1]} 28.
Nc1 {[%clk 0:02:33]} 28... f5 {[%clk 0:02:42.1]} 29. Re2 {[%clk 0:02:29.2]}
29... fxg4 {[%clk 0:02:38.4]} 30. hxg4 {[%clk 0:02:29.5]} 30... e5 {[%clk
0:02:39.1]} 31. dxe5 {[%clk 0:02:18.7]} 31... Qxg4 {[%clk 0:02:37.9]} 32. Nh2
{[%clk 0:01:29.9]} 32... Qe6 {[%clk 0:02:34.7]} 33. Rh1 {[%clk 0:01:25.4]} 33...
Nf5 {[%clk 0:02:30.6]} 34. Nf3 {[%clk 0:01:25.5]} 34... h6 {[%clk 0:02:21.6]}
35. Ree1 {[%clk 0:01:17.8]} 35... Kg8 {[%clk 0:02:15.9]} 36. Ne2 {[%clk
0:01:17.7]} 36... d4 {[%clk 0:02:06.8]} 37. Qe4 {[%clk 0:01:00.1]} 37... Rd8
{[%clk 0:01:58.2]} 38. Bf2 {[%clk 0:00:51.9]} 38... d3 {[%clk 0:01:55]} 39. Ng3
{[%clk 0:00:52.4]} 39... Nce7 {[%clk 0:01:49.5]} 40. Rb1 {[%clk 0:00:43.5]}
40... Nd5 {[%clk 0:01:37.3]} 41. Nxf5 {[%clk 0:00:23.2]} 41... Rxf5 {[%clk
0:01:37.2]} 42. Nd4 {[%clk 0:00:07.9]} 42... Nxf4+ {[%clk 0:01:37.3]} 43. Kf3
{[%clk 0:00:06.7]} 43... Rxd4 {[%clk 0:01:30.4]} 44. Bxd4 {[%clk 0:00:06]} 44...
Bxe5 {[%clk 0:01:25.4]} 45. Bxe5 {[%clk 0:00:05.4]} 45... Nd5+ {[%clk
0:01:09.8]} 46. Kg2 {[%clk 0:00:01.7]} 46... Rxe5 {[%clk 0:01:09.3]} 47. Qf3
{[%clk 0:00:02]} 47... Ne3+ {[%clk 0:01:02.6]} 48. Kh2 {[%clk 0:00:01.7]} 48...
Rh5+ {[%clk 0:00:53]} 49. Kg1 {[%clk 0:00:01.8]} 49... Rg5+ {[%clk 0:00:51.7]}
50. Kh2 {[%clk 0:00:02.2]} 50... Ng4+ {[%clk 0:00:52.3]} 0-1

[Event "Early-Titled-Tuesday-Blitz-September-05-2023"]
[Site "Chess.com"]
[Date "2023.09.05"]
[Round "8"]
[White "Nf3c5"]
[Black "BogdanDeac"]
[Result "0-1"]
[WhiteElo "2604"]
[BlackElo "3003"]
[TimeControl "180+1"]
[EndTime "9:26:25 PDT"]
[Termination "BogdanDeac won on time"]

1. e4 {[%clk 0:02:55.5]} 1... c6 {[%clk 0:02:59.6]} 2. Nc3 {[%clk 0:02:49.8]}
2... d5 {[%clk 0:03:00.5]} 3. Nf3 {[%clk 0:02:50]} 3... dxe4 {[%clk 0:03:00.6]}
4. Nxe4 {[%clk 0:02:50.7]} 4... Nf6 {[%clk 0:03:01.2]} 5. Qe2 {[%clk 0:02:50.6]}
5... Na6 {[%clk 0:03:01.1]} 6. d4 {[%clk 0:02:43.2]} 6... Qd5 {[%clk 0:02:57.8]}
7. Nc3 {[%clk 0:01:34.5]} 7... Qh5 {[%clk 0:02:56]} 8. Ne5 {[%clk 0:01:22]} 8...
Qxe2+ {[%clk 0:02:45.1]} 9. Bxe2 {[%clk 0:01:22.9]} 9... Nb4 {[%clk 0:02:45.6]}
10. Bd1 {[%clk 0:01:22]} 10... Bf5 {[%clk 0:02:45.2]} 11. Kd2 {[%clk 0:01:03.7]}
11... Rd8 {[%clk 0:02:44.5]} 12. a3 {[%clk 0:01:02]} 12... Na6 {[%clk
0:02:16.7]} 13. Ke3 {[%clk 0:00:58.6]} 13... g6 {[%clk 0:02:16.5]} 14. Nf3
{[%clk 0:00:49.2]} 14... Bh6+ {[%clk 0:02:05.8]} 15. Ke2 {[%clk 0:00:49.3]}
15... Bxc1 {[%clk 0:02:05.4]} 16. Rxc1 {[%clk 0:00:50.2]} 16... O-O {[%clk
0:01:53.8]} 17. h3 {[%clk 0:00:50.3]} 17... Nc7 {[%clk 0:01:53.2]} 18. Re1
{[%clk 0:00:48.6]} 18... h5 {[%clk 0:01:25.6]} 19. Kf1 {[%clk 0:00:48.4]} 19...
Ne6 {[%clk 0:01:25.7]} 20. Ne2 {[%clk 0:00:46]} 20... Be4 {[%clk 0:01:22.8]} 21.
c3 {[%clk 0:00:36.9]} 21... Bxf3 {[%clk 0:01:22]} 22. gxf3 {[%clk 0:00:37.5]}
22... c5 {[%clk 0:01:00.3]} 23. Bb3 {[%clk 0:00:35.4]} 23... cxd4 {[%clk
0:01:00.4]} 24. Bxe6 {[%clk 0:00:35.3]} 24... d3 {[%clk 0:01:00.3]} 25. Bc4
{[%clk 0:00:08.9]} 25... d2 {[%clk 0:00:59.6]} 26. Rcd1 {[%clk 0:00:06.3]} 26...
dxe1=Q+ {[%clk 0:00:59.4]} 27. Rxe1 {[%clk 0:00:07.2]} 27... e6 {[%clk
0:00:58.6]} 28. Nd4 {[%clk 0:00:07.1]} 28... a6 {[%clk 0:00:57.6]} 29. a4 {[%clk
0:00:07.1]} 29... Rd6 {[%clk 0:00:56.6]} 30. h4 {[%clk 0:00:07.2]} 30... Rc8
{[%clk 0:00:56.4]} 31. Ba2 {[%clk 0:00:06.4]} 31... Kf8 {[%clk 0:00:56.4]} 32.
Re5 {[%clk 0:00:05.8]} 32... Rb6 {[%clk 0:00:51.6]} 33. Re2 {[%clk 0:00:04.9]}
33... Nd7 {[%clk 0:00:49.5]} 34. a5 {[%clk 0:00:02.8]} 34... Rd6 {[%clk
0:00:49.6]} 35. Kg2 {[%clk 0:00:03.3]} 35... Rc5 {[%clk 0:00:49.2]} 36. Kg3
{[%clk 0:00:03.7]} 36... Rxa5 {[%clk 0:00:48.3]} 37. Bb3 {[%clk 0:00:03.9]}
37... Ra1 {[%clk 0:00:48.5]} 38. Bc2 {[%clk 0:00:04.2]} 38... Nf6 {[%clk
0:00:46.7]} 39. f4 {[%clk 0:00:03.1]} 39... Rb6 {[%clk 0:00:46.5]} 40. f5 {[%clk
0:00:02.9]} 40... gxf5 {[%clk 0:00:43.2]} 41. Kf4 {[%clk 0:00:01.5]} 41... Rxb2
{[%clk 0:00:42.2]} 42. f3 {[%clk 0:00:01.7]} 42... Nd5+ {[%clk 0:00:41.9]} 43.
Ke5 {[%clk 0:00:01.4]} 43... Nxc3 {[%clk 0:00:38.9]} 0-1

[Event "Early-Titled-Tuesday-Blitz-September-05-2023"]
[Site "Chess.com"]
[Date "2023.09.05"]
[Round "8"]
[White "Shield12"]
[Black "Ali_rastbod"]
[Result "1-0"]
[WhiteElo "2963"]
[BlackElo "2710"]
[TimeControl "180+1"]
[EndTime "9:26:26 PDT"]
[Termination "Shield12 won by checkmate"]

1. e4 {[%clk 0:03:00.9]} 1... c6 {[%clk 0:02:56.5]} 2. Nf3 {[%clk 0:03:00.5]}
2... d5 {[%clk 0:02:56.9]} 3. Nc3 {[%clk 0:03:01.4]} 3... Nf6 {[%clk 0:02:56.1]}
4. e5 {[%clk 0:03:01.3]} 4... Ne4 {[%clk 0:02:56.5]} 5. Ne2 {[%clk 0:03:01.9]}
5... Qb6 {[%clk 0:02:57]} 6. d4 {[%clk 0:03:02]} 6... c5 {[%clk 0:02:57.5]} 7.
dxc5 {[%clk 0:02:59.8]} 7... Qxc5 {[%clk 0:02:58.4]} 8. Ned4 {[%clk 0:02:57.4]}
8... Nc6 {[%clk 0:02:58.8]} 9. Be2 {[%clk 0:02:55.2]} 9... Bg4 {[%clk 0:02:58]}
10. c3 {[%clk 0:02:52.7]} 10... Qb6 {[%clk 0:02:47.5]} 11. O-O {[%clk 0:02:49]}
11... e6 {[%clk 0:02:33.7]} 12. Be3 {[%clk 0:02:41.8]} 12... Qc7 {[%clk
0:02:32.5]} 13. Qa4 {[%clk 0:02:29.4]} 13... Bxf3 {[%clk 0:02:11.3]} 14. Nxf3
{[%clk 0:02:27.6]} 14... Bc5 {[%clk 0:01:57.2]} 15. Nd4 {[%clk 0:01:54.5]} 15...
h6 {[%clk 0:01:26.7]} 16. Nb5 {[%clk 0:01:41]} 16... Qb6 {[%clk 0:01:15.6]} 17.
Bxc5 {[%clk 0:01:38]} 17... Nxc5 {[%clk 0:01:11.6]} 18. Nd6+ {[%clk 0:01:34.8]}
18... Ke7 {[%clk 0:01:06.5]} 19. Qf4 {[%clk 0:01:35.7]} 19... Nxe5 {[%clk
0:00:55.9]} 20. Nf5+ {[%clk 0:01:29.6]} 20... exf5 {[%clk 0:00:56.8]} 21. Qxe5+
{[%clk 0:01:29.7]} 21... Ne6 {[%clk 0:00:56.6]} 22. Qxd5 {[%clk 0:01:24]} 22...
Qxb2 {[%clk 0:00:33.2]} 23. Bf3 {[%clk 0:01:10.2]} 23... Rhd8 {[%clk 0:00:26.8]}
24. Qxf5 {[%clk 0:01:09.1]} 24... Qxc3 {[%clk 0:00:25.2]} 25. Rab1 {[%clk
0:01:07.4]} 25... Rd7 {[%clk 0:00:17.2]} 26. Rfe1 {[%clk 0:01:04.5]} 26... Rad8
{[%clk 0:00:13.8]} 27. Bh5 {[%clk 0:00:57.4]} 27... Qf6 {[%clk 0:00:11.5]} 28.
Qc5+ {[%clk 0:00:50.4]} 28... Ke8 {[%clk 0:00:11.9]} 29. Qxa7 {[%clk 0:00:47.9]}
29... Qe7 {[%clk 0:00:07.8]} 30. Bf3 {[%clk 0:00:40.5]} 30... Kf8 {[%clk
0:00:06.7]} 31. Rxb7 {[%clk 0:00:38.8]} 31... Rxb7 {[%clk 0:00:06.8]} 32. Qxb7
{[%clk 0:00:37.5]} 32... Qxb7 {[%clk 0:00:07.1]} 33. Bxb7 {[%clk 0:00:37.1]}
33... Rd7 {[%clk 0:00:06.8]} 34. Bc6 {[%clk 0:00:31.4]} 34... Ra7 {[%clk
0:00:07.2]} 35. a4 {[%clk 0:00:30]} 35... Nc5 {[%clk 0:00:07]} 36. Re8# {[%clk
0:00:29.2]} 1-0

[Event "Early-Titled-Tuesday-Blitz-September-05-2023"]
[Site "Chess.com"]
[Date "2023.09.05"]
[Round "8"]
[White "Boundless_Strike"]
[Black "chess94cu"]
[Result "1-0"]
[WhiteElo "2562"]
[BlackElo "2698"]
[TimeControl "180+1"]
[EndTime "9:26:28 PDT"]
[Termination "Boundless_Strike won by resignation"]

1. d3 {[%clk 0:03:00.4]} 1... Nf6 {[%clk 0:02:55.7]} 2. e4 {[%clk 0:02:58]} 2...
d6 {[%clk 0:02:55.4]} 3. f4 {[%clk 0:02:52]} 3... Nbd7 {[%clk 0:02:52.9]} 4. Nf3
{[%clk 0:02:52]} 4... e5 {[%clk 0:02:50.7]} 5. Be2 {[%clk 0:02:52.1]} 5... Be7
{[%clk 0:02:50.5]} 6. O-O {[%clk 0:02:52.1]} 6... c6 {[%clk 0:02:51.3]} 7. Kh1
{[%clk 0:02:43]} 7... Qc7 {[%clk 0:02:51.1]} 8. a4 {[%clk 0:02:37.4]} 8... a5
{[%clk 0:02:49.4]} 9. Qe1 {[%clk 0:02:34.3]} 9... b6 {[%clk 0:02:46.3]} 10. fxe5
{[%clk 0:02:20.1]} 10... Nxe5 {[%clk 0:02:43.7]} 11. d4 {[%clk 0:02:15.9]} 11...
Nxf3 {[%clk 0:02:40.4]} 12. Bxf3 {[%clk 0:02:16.1]} 12... Be6 {[%clk 0:02:38]}
13. Nc3 {[%clk 0:02:12.3]} 13... O-O {[%clk 0:02:35.6]} 14. Bf4 {[%clk
0:02:10.5]} 14... Rfe8 {[%clk 0:02:33.1]} 15. Qg3 {[%clk 0:02:08.8]} 15... Rad8
{[%clk 0:02:21.6]} 16. Rae1 {[%clk 0:01:39.4]} 16... Qc8 {[%clk 0:02:15.8]} 17.
e5 {[%clk 0:01:26.1]} 17... dxe5 {[%clk 0:01:57.5]} 18. Bxe5 {[%clk 0:01:25.1]}
18... Bc4 {[%clk 0:01:58]} 19. Ne4 {[%clk 0:01:08.6]} 19... Kh8 {[%clk 0:01:37]}
20. Be2 {[%clk 0:00:42.9]} 20... Bd5 {[%clk 0:01:14.6]} 21. Bd3 {[%clk
0:00:42.9]} 21... Bxe4 {[%clk 0:00:52.2]} 22. Rxe4 {[%clk 0:00:42.5]} 22... Bd6
{[%clk 0:00:49.4]} 23. Rh4 {[%clk 0:00:23.9]} 23... Bxe5 {[%clk 0:00:46.6]} 24.
dxe5 {[%clk 0:00:23.9]} 24... Rxd3 {[%clk 0:00:46.5]} 25. Qxd3 {[%clk 0:00:19]}
25... Rxe5 {[%clk 0:00:46.6]} 26. Rxf6 {[%clk 0:00:19.5]} 26... g6 {[%clk
0:00:36.5]} 27. Rf1 {[%clk 0:00:17.5]} 27... Qe6 {[%clk 0:00:35.1]} 28. Rhf4
{[%clk 0:00:16.9]} 28... f5 {[%clk 0:00:33.4]} 29. R4f2 {[%clk 0:00:17]} 29...
Kg8 {[%clk 0:00:31.6]} 30. Rd2 {[%clk 0:00:17.2]} 30... Kg7 {[%clk 0:00:31.1]}
31. Qd7+ {[%clk 0:00:17.4]} 31... Qxd7 {[%clk 0:00:31.8]} 32. Rxd7+ {[%clk
0:00:18.3]} 32... Kh6 {[%clk 0:00:32]} 33. Rd6 {[%clk 0:00:18.8]} 33... Rc5
{[%clk 0:00:30.4]} 34. c3 {[%clk 0:00:19.2]} 34... Rc4 {[%clk 0:00:31.1]} 35.
Ra1 {[%clk 0:00:19.7]} 35... Kg5 {[%clk 0:00:30.3]} 36. Kg1 {[%clk 0:00:20.3]}
36... h5 {[%clk 0:00:30.9]} 37. Kf2 {[%clk 0:00:20.8]} 37... h4 {[%clk
0:00:31.5]} 38. h3 {[%clk 0:00:18.7]} 38... Kf4 {[%clk 0:00:31.7]} 39. Rxg6
{[%clk 0:00:18.4]} 39... Rc5 {[%clk 0:00:29.7]} 40. Re1 {[%clk 0:00:17.2]} 40...
Rd5 {[%clk 0:00:29.6]} 41. Rxc6 {[%clk 0:00:15.6]} 41... Rd2+ {[%clk 0:00:30.2]}
42. Re2 {[%clk 0:00:16.1]} 42... Rd1 {[%clk 0:00:31]} 43. Rxb6 {[%clk
0:00:14.8]} 1-0

[Event "Early-Titled-Tuesday-Blitz-September-05-2023"]
[Site "Chess.com"]
[Date "2023.09.05"]
[Round "8"]
[White "MITerryble"]
[Black "Korchmar_Vasiliy"]
[Result "1-0"]
[WhiteElo "2923"]
[BlackElo "2709"]
[TimeControl "180+1"]
[EndTime "9:26:29 PDT"]
[Termination "MITerryble won by checkmate"]

1. d4 {[%clk 0:03:00.9]} 1... d5 {[%clk 0:02:58]} 2. Nf3 {[%clk 0:03:01.2]} 2...
Nf6 {[%clk 0:02:58]} 3. c4 {[%clk 0:03:01.7]} 3... c6 {[%clk 0:02:58.2]} 4. Nc3
{[%clk 0:03:02.1]} 4... e6 {[%clk 0:02:58.4]} 5. Bg5 {[%clk 0:03:02.1]} 5...
Nbd7 {[%clk 0:02:58.3]} 6. e3 {[%clk 0:03:02.4]} 6... Be7 {[%clk 0:02:58.7]} 7.
Qc2 {[%clk 0:03:02.5]} 7... O-O {[%clk 0:02:58.8]} 8. Rd1 {[%clk 0:03:02.6]}
8... h6 {[%clk 0:02:58.2]} 9. Bh4 {[%clk 0:03:02]} 9... b6 {[%clk 0:02:55.2]}
10. cxd5 {[%clk 0:02:58.3]} 10... cxd5 {[%clk 0:02:53]} 11. Bd3 {[%clk
0:02:52.6]} 11... Bb7 {[%clk 0:02:50.9]} 12. O-O {[%clk 0:02:52.8]} 12... Rc8
{[%clk 0:02:51.2]} 13. Qe2 {[%clk 0:02:52.9]} 13... Ne4 {[%clk 0:02:46.5]} 14.
Bxe7 {[%clk 0:02:39.2]} 14... Nxc3 {[%clk 0:02:37.4]} 15. bxc3 {[%clk
0:02:27.2]} 15... Qxe7 {[%clk 0:02:36.9]} 16. Qb2 {[%clk 0:02:27.9]} 16... Rc7
{[%clk 0:02:27.6]} 17. Rc1 {[%clk 0:02:21.4]} 17... Rfc8 {[%clk 0:02:27.7]} 18.
Nd2 {[%clk 0:02:21.3]} 18... Nf6 {[%clk 0:02:22.6]} 19. Rc2 {[%clk 0:02:13.8]}
19... Ne8 {[%clk 0:02:22.3]} 20. Rfc1 {[%clk 0:02:12.8]} 20... Nd6 {[%clk
0:02:22.6]} 21. Qa3 {[%clk 0:02:12.1]} 21... a6 {[%clk 0:01:43.7]} 22. Qb4
{[%clk 0:02:09.7]} 22... Rc6 {[%clk 0:01:18.7]} 23. e4 {[%clk 0:01:45.6]} 23...
dxe4 {[%clk 0:01:10.5]} 24. Bxe4 {[%clk 0:01:40.8]} 24... a5 {[%clk 0:00:59.7]}
25. Qa3 {[%clk 0:01:41]} 25... R6c7 {[%clk 0:00:53.1]} 26. Bxb7 {[%clk
0:01:40.9]} 26... Rxb7 {[%clk 0:00:54]} 27. c4 {[%clk 0:01:12.5]} 27... Qd8
{[%clk 0:00:45.9]} 28. Nf3 {[%clk 0:01:06.7]} 28... Nf5 {[%clk 0:00:36.4]} 29.
Qb2 {[%clk 0:01:05.8]} 29... Rd7 {[%clk 0:00:34.5]} 30. Rd2 {[%clk 0:01:02.8]}
30... Rd6 {[%clk 0:00:25.8]} 31. h3 {[%clk 0:00:54.1]} 31... Qf6 {[%clk
0:00:17.3]} 32. c5 {[%clk 0:00:50.4]} 32... bxc5 {[%clk 0:00:12.5]} 33. dxc5
{[%clk 0:00:51.3]} 33... Qxb2 {[%clk 0:00:05.6]} 34. Rxb2 {[%clk 0:00:52.2]}
34... Rdc6 {[%clk 0:00:03.6]} 35. Rb5 {[%clk 0:00:52.8]} 35... f6 {[%clk
0:00:03.6]} 36. Rxa5 {[%clk 0:00:52.9]} 36... e5 {[%clk 0:00:02.4]} 37. g4
{[%clk 0:00:53.1]} 37... Ne7 {[%clk 0:00:02.6]} 38. Nd2 {[%clk 0:00:53.7]} 38...
Ng6 {[%clk 0:00:02.7]} 39. Ne4 {[%clk 0:00:53.6]} 39... Nf4 {[%clk 0:00:03]} 40.
Kh2 {[%clk 0:00:53.9]} 40... Nd3 {[%clk 0:00:03.3]} 41. Rc2 {[%clk 0:00:53.7]}
41... Kf7 {[%clk 0:00:03.2]} 42. Ra3 {[%clk 0:00:49.8]} 42... Nf4 {[%clk
0:00:03]} 43. Ra7+ {[%clk 0:00:47.8]} 43... Ke6 {[%clk 0:00:03.4]} 44. Rxg7
{[%clk 0:00:47]} 44... Kd5 {[%clk 0:00:03.7]} 45. f3 {[%clk 0:00:47.6]} 45...
Kd4 {[%clk 0:00:03.8]} 46. Rd7+ {[%clk 0:00:47.4]} 46... Ke3 {[%clk 0:00:03.8]}
47. Rc3+ {[%clk 0:00:44.9]} 47... Ke2 {[%clk 0:00:04]} 48. Rd2+ {[%clk 0:00:45]}
48... Ke1 {[%clk 0:00:04.6]} 49. Rc1# {[%clk 0:00:45.2]} 1-0

[Event "Early-Titled-Tuesday-Blitz-September-05-2023"]
[Site "Chess.com"]
[Date "2023.09.05"]
[Round "8"]
[White "crazy_m_attack"]
[Black "GeorgiosSouleidis"]
[Result "0-1"]
[WhiteElo "2361"]
[BlackElo "2543"]
[TimeControl "180+1"]
[EndTime "9:26:37 PDT"]
[Termination "GeorgiosSouleidis won on time"]

1. e4 {[%clk 0:03:00.9]} 1... c5 {[%clk 0:02:58.3]} 2. Nf3 {[%clk 0:03:01]} 2...
e6 {[%clk 0:02:58.6]} 3. d4 {[%clk 0:03:01.2]} 3... cxd4 {[%clk 0:02:59.5]} 4.
Nxd4 {[%clk 0:03:02.1]} 4... Nf6 {[%clk 0:02:59.8]} 5. Nc3 {[%clk 0:03:02.5]}
5... Nc6 {[%clk 0:03:00.2]} 6. Ndb5 {[%clk 0:03:02.3]} 6... Bc5 {[%clk
0:03:00.4]} 7. Bf4 {[%clk 0:02:58.8]} 7... O-O {[%clk 0:03:00.4]} 8. Bc7 {[%clk
0:02:58.7]} 8... Qe7 {[%clk 0:03:00.9]} 9. Bd6 {[%clk 0:02:59.2]} 9... Bxd6
{[%clk 0:03:01.4]} 10. Qxd6 {[%clk 0:02:59.5]} 10... Qd8 {[%clk 0:03:01.9]} 11.
Nc7 {[%clk 0:02:59.2]} 11... Rb8 {[%clk 0:02:59.4]} 12. e5 {[%clk 0:02:54.1]}
12... Ng4 {[%clk 0:02:51]} 13. f4 {[%clk 0:02:16.4]} 13... Ne3 {[%clk
0:02:50.7]} 14. Kd2 {[%clk 0:02:06.9]} 14... Nf5 {[%clk 0:02:47.6]} 15. Qc5
{[%clk 0:01:45.6]} 15... Qxc7 {[%clk 0:02:47.1]} 16. g4 {[%clk 0:01:45.9]} 16...
b6 {[%clk 0:01:31.3]} 17. Qf2 {[%clk 0:01:42.9]} 17... Nfe7 {[%clk 0:01:28.9]}
18. Bd3 {[%clk 0:01:42.8]} 18... d6 {[%clk 0:01:28.3]} 19. exd6 {[%clk
0:01:41.2]} 19... Qxd6 {[%clk 0:01:27.8]} 20. Rad1 {[%clk 0:01:38.9]} 20... Nb4
{[%clk 0:01:27.6]} 21. Kc1 {[%clk 0:01:34]} 21... Nxd3+ {[%clk 0:01:27.9]} 22.
Rxd3 {[%clk 0:01:34.8]} 22... Qc6 {[%clk 0:01:27.1]} 23. Rhd1 {[%clk 0:01:34.2]}
23... Bb7 {[%clk 0:01:27.5]} 24. f5 {[%clk 0:01:27]} 24... exf5 {[%clk
0:01:25.8]} 25. gxf5 {[%clk 0:01:25.8]} 25... Qf6 {[%clk 0:01:20.5]} 26. Rd7
{[%clk 0:01:18.2]} 26... Qxf5 {[%clk 0:01:04.2]} 27. Qg3 {[%clk 0:01:18.2]}
27... Ng6 {[%clk 0:01:03.5]} 28. Kb1 {[%clk 0:01:05.7]} 28... Qf4 {[%clk
0:01:03.6]} 29. Qd3 {[%clk 0:01:02.5]} 29... Ne5 {[%clk 0:00:56.4]} 30. Qd6
{[%clk 0:01:02.4]} 30... Qf6 {[%clk 0:00:49.4]} 31. Re7 {[%clk 0:00:51]} 31...
Qxd6 {[%clk 0:00:48.9]} 32. Rxd6 {[%clk 0:00:51.9]} 32... Ng6 {[%clk 0:00:47]}
33. Rc7 {[%clk 0:00:48.3]} 33... Rfe8 {[%clk 0:00:39.4]} 34. a4 {[%clk
0:00:45.8]} 34... h5 {[%clk 0:00:33]} 35. Rdd7 {[%clk 0:00:41.6]} 35... Ne5
{[%clk 0:00:31.8]} 36. Rxb7 {[%clk 0:00:40.9]} 36... Nxd7 {[%clk 0:00:32.2]} 37.
Rxd7 {[%clk 0:00:41.8]} 37... a6 {[%clk 0:00:29]} 38. Ra7 {[%clk 0:00:27.7]}
38... a5 {[%clk 0:00:28.8]} 39. Nd5 {[%clk 0:00:23.2]} 39... Re1+ {[%clk
0:00:28.8]} 40. Ka2 {[%clk 0:00:23.1]} 40... Re2 {[%clk 0:00:28.7]} 0-1